Workbook

Sheet メイン
A1: Menu
C3: 計画承認申請書
C4: 栽培基準
C5: 生産計画書
C6: 生産確認書
C7: 内容変更届
C8: 計画中止届
C9: 認証申請書
C10: 実績報告書
C11: 誓約書
C12: 確認記録簿
C13: 生産履歴記帳簿
C14: 記入例１
C15: 記入例２
C16: リスト
C17: データ一覧表

Sheet 計画承認申請書
A1: 計画承認申請書
B4: 号数（必須） | E4: 1
B5: 承認年月日（必須） | G5: 年 | I5: 月 | K5: 日
B6: 知事名（必須）
B7: (確認責任者) | C7: 団体名（必須）
C8: 住所（必須）
C9: 氏名（必須）
C10: 電話番号（必須）
C11: 携帯電話番号（必須）

Sheet 栽培基準
A1: 栽培基準
B4: 栽培基準番号（必須） | E4: 1
B5: 取組団体名（必須）
B6: 区分（必須） | F6: 有作くん | I6: 有作くん１００
B7: 確認責任者（必須）
B8: 栽培責任者（必須）
B9: １．栽培計画（必須）
B10: 品目(作型) | D10: 品目 | H10: 作型 | L10: 栽培開始月 | O10: 月
B11: 作業名 | C11: 播種 〇 | E11: 月 | G11: 旬 | H11: ・栽培開始月は播種作業より前を指定してください
C12: 定植 △ | E12: 月 | G12: 旬
C13: 収穫 □ | E13: 月 | G13: 旬
C14: 出荷 ■ | E14: 月 | G14: 旬
B15: ２．栽培基準
B16: （１）土づくり・施肥管理
B17: 使用時期 | C17: 資材名 | F17: 資材の窒素成分量 (%) | H17: 有機率(%) | J17: 資材の施用量 (kg/10a) | L17: 窒素施用量(kg/10a) | N17: うち化学肥料窒素 施用量(kg/10a)
L19: =F19/100*J19 -> 0 | N19: =L19*(1-H19/100) -> 0
L20: =F20/100*J20 -> 0 | N20: =L20*(1-H20/100) -> 0
L21: =F21/100*J21 -> 0 | N21: =L21*(1-H21/100) -> 0
L22: 0 | N22: 0
L23: 0 | N23: 0
B24: （２）雑草・病害虫防除管理
B25: 使用時期 | C25: 資材名 | F25: 使用目的 | H25: 成分名 | N25: 使用回数 (成分回数)
B32: ３ その他（環境保全等に関する取組事項）
B33: 項目 | F33: 具体的内容（実施を計画している項目を一つ以上記載すること(資料１参照)）
B35: 廃棄物の適正な処理・利用
B36: エネルギーの節減
B37: 新たな知見・情報の収集
B38: 生産情報の保存
B39: 農村やほ場の環境美化活動
B40: 都市・農村の交流（ｸﾞﾘｰﾝﾂｰﾘｽﾞﾑ）

Sheet 生産計画書
A1: 生産計画書
B4: 生産計画番号（必須） | E4: 1
B5: 取組団体名（必須）
B6: 区分（必須） | F6: 有作くん | I6: 有作くん１００
B7: 確認責任者（必須）
B8: 栽培責任者（必須）
B9: １．栽培計画（必須）
B10: 品目(作型) | D10: 品目 | H10: 作型 | L10: 作業開始月 | O10: 月
B11: 作業名 | C11: 播種 〇 | E11: 月 | G11: 旬 | H11: ・栽培開始月は播種作業より前を指定してください
C12: 定植 △ | E12: 月 | G12: 旬
C13: 収穫 □ | E13: 月 | G13: 旬
C14: 出荷 ■ | E14: 月 | G14: 旬
B16: No | C16: 生産者名 | E16: 住所 | H16: 生年月日 | J16: ｸﾞﾘｰﾝ農業 生産宣言番号※ | L16: ほ場の所在地 | O16: 計画（生産計画承認申請時）
O17: 栽培面積(a) | Q17: 出荷予定量(kg)
B18: 1
B19: 2
B20: 3
B21: 4
B22: 5
B23: 6
B24: 7
B25: 8
B26: 9
B27: 10

Sheet 生産確認書
A1: 生産確認書
B4: 生産確認番号（必須） | E4: 1
B5: 取組団体名（必須）
B6: 区分（必須） | F6: 有作くん | I6: 有作くん１００
B7: 確認責任者（必須）
B8: 栽培責任者（必須）
B9: １．栽培計画（必須）
B10: 品目(作型) | D10: 品目 | H10: 作型 | L10: 作業開始月 | O10: 月
B11: 作業名 | C11: 播種 〇 | E11: 月 | G11: 旬 | H11: ・栽培開始月は播種作業より前を指定してください
C12: 定植 △ | E12: 月 | G12: 旬
C13: 収穫 □ | E13: 月 | G13: 旬
C14: 出荷 ■ | E14: 月 | G14: 旬
B16: No | C16: 生産者名 | E16: 住所 | H16: 生年月日 | J16: ｸﾞﾘｰﾝ農業 生産宣言番号※ | L16: ほ場の所在地 | O16: 確認(認証申請時)
O17: 栽培面積(a) | Q17: 出荷予定量(kg)
B18: 1
B19: 2
B20: 3
B21: 4
B22: 5
B23: 6
B24: 7
B25: 8
B26: 9
B27: 10

Sheet 内容変更届
A1: 内容変更届
B4: 号数（必須） | E4: 1
B5: 内容変更年月日（必須） | G5: 年 | I5: 月 | K5: 日
B6: 知事名（必須）
B7: (確認責任者) | C7: 団体名（必須）
C8: 住所（必須）
C9: 氏名（必須）
E10: 変更前 | J10: 変更後
B11: 団体名（必須）
B12: 住所（必須）
B13: 確認責任者名（必須）
B14: 生産ほ場の所在地及び面積 | E14: 別記第１号様式の３（生産計画書（確認書））を添付
B15: 変更理由（必須）

Sheet 計画中止届
A1: 計画中止届
B4: 号数（必須） | E4: 1
B5: 計画中止年月日（必須） | G5: 年 | I5: 月 | K5: 日
B6: 知事名（必須）
B7: (確認責任者) | C7: 団体名（必須）
C8: 住所（必須）
C9: 氏名（必須）
B10: 品目及び生産ほ場 | E10: 別記第１号様式の３（生産計画書（確認書））を添付
B11: 計画中止の理由（必須）

Sheet 認証申請書
A1: 認証申請書
B4: 号数（必須） | E4: 1
B5: 認証申請年月日（必須） | G5: 年 | I5: 月 | K5: 日
B6: 知事名（必須）
B7: (確認責任者) | C7: 団体名（必須）
C8: 住所（必須）
C9: 氏名（必須）

Sheet 実績報告書
A1: 実績報告書
B4: 実績報告番号（必須） | E4: 1
B5: 実績報告年月日（必須） | G5: 年 | I5: 月 | K5: 日
B6: 知事名（必須）
B7: (確認責任者) | C7: 団体名（必須）
C8: 住所（必須）
C9: 氏名（必須）
B10: １ 生産実績
B11: 品目（作型） | E11: 生産者数（人） | G11: 作付面積（ａ）
B14: 合計
B16: ２ 出荷実績
B17: 品目（作型） | E17: 出荷量（ｋｇ） | G17: 出荷時期 | I17: 主な出荷先
B20: 合計

Sheet 誓約書
A1: 誓約書
B4: 号数（必須） | E4: 1
B5: 誓約年月日（必須） | G5: 年 | I5: 月 | K5: 日
B6: 知事名（必須）
B7: (確認責任者) | C7: 団体名（必須）
C8: 住所（必須）
C9: 氏名（必須）

Sheet 確認記録簿
A1: 確認記録簿
B4: 取組団体名（必須）
B5: 確認責任者名（必須）
B6: 栽培責任者名（必須）
B7: 品目名(作型)（必須）
B8: １ 生産指導内容
B9: 月日 | C9: 指導･確認内容
C10: 土づくり・施肥 | F10: 雑草・病害虫防除 | I10: 環境保全に関する事項
B26: ２ 主な出荷先

Sheet 生産履歴記帳簿
A1: 生産履歴記帳簿
B4: 団体名（必須）
B5: 生産者名（必須）
B6: 住所（必須）
B7: 品目名(作型)（必須）
B8: 品種名
B9: 対象ほ場
B10: No. | C10: 地番 | G10: 面積(a) | H10: 作付日 | J10: 作付方法 | L10: 収穫開始日
B11: 1
B12: 2
B13: 3
B14: 4
B15: 5
B16: 土づくり・施肥
C17: 使用資材名称 | I17: 施用量(t/10a) | K17: 施用日 | M17: 備考(ほ 場No.等)
B19: 堆肥等
B22: 土壌 改良資材
B25: 基肥
B29: 追肥
B33: 雑草・病害虫防除等
C34: 使用資材名称 | I34: 散布日
I35: １回目 | J35: ２回目 | K35: ３回目 | L35: ４回目 | M35: ５回目
B36: 除草剤
B39: 殺菌剤
B44: 殺虫剤
C51: 出荷予定（認証申請時） | I51: 出荷実績
C52: 収穫量(kg) | E52: 出荷予定日 | G52: 有作くんとしての 出荷予定量(kg) | I52: 収穫量(kg) | K52: 出荷日 | M52: 有作くんとしての出荷量(kg)
B62: 合計 | C62: =SUM(C54:D61) -> 0 | E62: - | G62: =SUM(G54:H61) -> 0 | I62: =SUM(I54:J61) -> 0 | K62: - | M62: =SUM(M54:N61) -> 0
B63: 出荷先
B65: その他 | C65: 期日 | E65: 作業内容
B71: 項目 | E71: 具体的内容
B72: 廃棄物の適正な処理・利用
B74: エネルギーの節減
B76: 新たな知見・情報の収集
B78: 生産情報の保存
B80: 農村やほ場の環境美化活動
B82: 都市・農村の交流 （ｸﾞﾘｰﾝﾂｰﾘｽﾞﾑ）
B85: 確認欄 | C85: 確認日 | E85: 確認責任者名

Sheet 記入例１
A1: 別記第１号様式の２ | AJ1: 別添１６
A2: 平成28年度栽培基準
A3: 取組団体名： | G3: 有作くん特栽米生産組合
A4: 区分 | F4: ■ | H4: 有作くん | P4: 確認責任者名 | W4: ○○ ○○
F5: □ | H5: 有作くん100 | P5: 栽培責任者名 | W5: △△ △△
A7: １ 栽培計画
A8: 品目 (作型) | E8: ２月 | H8: ３月 | K8: ４月 | N8: ５月 | Q8: ６月 | T8: ７月 | W8: ８月 | Z8: ９月 | AC8: 10月 | AF8: 11月 | AI8: 12月 | AL8: １月
E9: 上 | F9: 中 | G9: 下 | H9: 上 | I9: 中 | J9: 下 | K9: 上 | L9: 中 | M9: 下 | N9: 上 | O9: 中 | P9: 下 | Q9: 上 | R9: 中 | S9: 下 | T9: 上 | U9: 中 | V9: 下 | W9: 上 | X9: 中 | Y9: 下 | Z9: 上 | AA9: 中 | AB9: 下 | AC9: 上 | AD9: 中 | AE9: 下 | AF9: 上 | AG9: 中 | AH9: 下 | AI9: 上 | AJ9: 中 | AK9: 下 | AL9: 上 | AM9: 中 | AN9: 下
A10: 水稲 (ﾋﾉﾋｶﾘ) | O10: ○ | P10: - | Q10: - | R10: △ | S10: - | T10: - | U10: - | V10: - | W10: - | X10: - | Y10: - | Z10: - | AA10: - | AB10: - | AC10: - | AD10: □ | AE10: ■ | AF10: ■ | AG10: ■ | AH10: ■ | AI10: ■ | AJ10: ■ | AK10: ■ | AL10: ■ | AM10: ■ | AN10: ■
O11: 播種 | R11: 移植 | AD11: 収穫 | AF11: 出荷
A12: ※○播種、△定植、□収穫、■出荷等の作業を記入。
A13: ２ 栽培基準
A14: （１）土づくり・施肥管理
A15: 使用 時期 | D15: 資材名 | N15: 資材の窒素成分量(%) | T15: 資材の施用量(kg/10a) | X15: 窒素 施用量 (kg/10a) | AF15: 熊本県慣行ﾚﾍﾞﾙ (kg/ 10a) | AI15: 削減 割合 | AL15: 施用量上限の確認
Q16: 有機率(%) | AB16: うち化学肥料窒素施用量(kg/10a)
AI17: ※(1-②/③)×100で算出し50%以上になること
A18: 11月 | D18: 牛ふん堆肥 | N18: 1.1 | Q18: 100 | T18: 500 | X18: =N18/100*T18*0.33 -> 1.815 | AB18: 0 | AL18: ※①が③以下であること
A19: 11月 | D19: 粒状ｽｰﾊﾟｰｴﾝﾘｯﾁ１号 | N19: 0 | T19: 60 | X19: 0 | AB19: 0
A20: 基肥 | D20: 苦土有機入化成826 | N20: 8 | Q20: 60 | T20: 60 | X20: 4.8 | AB20: =X20*0.4 -> 1.92
A21: 穂肥 | D21: 苦土有機入化成047 | N21: 10 | Q21: 50 | T21: 15 | X21: 1.5 | AB21: 0.75
A22: 合計 | X22: ① | Y22: =SUM(X18:AA21) -> 8.115 | AB22: ② | AC22: =SUM(AB18:AE21) -> 2.67 | AF22: ③ | AG22: 10 | AI22: =(1-AC22/AG22)*100 -> 73.3 | AK22: % | AL22: ○
A23: （２）雑草・病害虫防除管理 | X23: ※牛ふん堆肥は窒素の肥効率30%で計算
A24: 使用 時期 | D24: 農薬名 | N24: 使用 目的 | Q24: 成分名 | AC24: 使用回数 (成分回数) | AG24: 熊本県 慣行ﾚﾍﾞﾙ (回) | AK24: 削減 割合
A26: 播種期 | D26: エコホープＤＪ | N26: 種子消毒 | Q26: トリコデルマ アトロビリデ | AC26: 0 | AK26: ※(1-①/②)×100で算出し50%以上になること
A27: 播種期 | D27: タチガレン液剤 | N27: 殺菌 | Q27: ヒドロキシイソキサゾール | AC27: 1
A28: 播種期 | D28: ビルダースタークル箱粒剤 | N28: 殺虫・殺菌 | Q28: ｼﾞﾉﾃﾌﾗﾝ、ﾌﾟﾛﾍﾞﾅｿﾞｰﾙ | AC28: 2
A29: 移植期 | D29: ナギナタジャンボ | N29: 除草 | Q29: ｵｷｻｼﾞｸﾛﾒﾎﾝ、ﾋﾟﾘﾐｽﾙﾌｧﾝ、ﾍﾞﾝｿﾞﾋﾞｼｸﾛﾝ | AC29: 3
A30: 9月 | D30: コラトップ粒剤5 | N30: 殺菌 | Q30: ピロキロン | AC30: 1
A31: 9月 | D31: スタークル粒剤 | N31: 殺虫 | Q31: ジノテフラン | AC31: 1
A32: 合計 | AC32: ① | AD32: =SUM(AC26:AF31) -> 8 | AG32: ② | AH32: 19 | AK32: =(1-AD32/AH32)*100 -> 57.89473684 | AN32: %
A33: ※資材の写真やｶﾀﾛｸﾞ等、使用資材の商品名と窒素成分量または農薬の有効成分がわかる資料を添付すること。
A35: ３ その他（環境保全等に関する取組事項）
A36: 項目 | O36: 具体的内容（実施を計画している項目を一つ以上記載すること(資料１参照)）
A37: 廃棄物の適正な処理・利用 | O37: 廃プラスチック等の適正処理、稲わらすき込み
A38: エネルギーの節減 | O38: BDFの使用
A39: 新たな知見・情報の収集 | O39: 講習会への参加
A40: 生産情報の保存 | O40: 生産履歴の記帳
A41: 農村やほ場の環境美化活動 | O41: 集落の清掃活動参加
A42: 都市・農村の交流（ｸﾞﾘｰﾝﾂｰﾘｽﾞﾑ） | O42: 消費者への情報発信

Sheet 記入例２
A1: 別記第１号様式の３ | BE1: 別添１７
A2: 平成28年度生産計画書（確認書）
A3: 取組団体名： | G3: 有作くん特栽米生産組合
A4: 区分 | G4: ■ | I4: 有作くん | S4: 確認責任者名 | Z4: ○○ ○○ | AQ4: ※○播種、△定植、□収穫、■出荷等の作業を記入。 ※※品目数に応じて行を追加・削除すること。
G5: □ | I5: 有作くん100 | S5: 栽培責任者名 | Z5: △△ △△
A6: 栽培計画 | G6: 月 | H6: 11月 | K6: 12月 | N6: １月 | Q6: ２月 | T6: ３月 | W6: ４月 | Z6: ５月 | AC6: ６月 | AF6: ７月 | AI6: ８月 | AL6: ９月 | AO6: 10月 | AR6: 11月 | AU6: 12月 | AX6: １月 | BA6: ２月 | BD6: ３月 | BG6: ４月
A7: 品目(作型) | G7: 旬 | H7: 上 | I7: 中 | J7: 下 | K7: 上 | L7: 中 | M7: 下 | N7: 上 | O7: 中 | P7: 下 | Q7: 上 | R7: 中 | S7: 下 | T7: 上 | U7: 中 | V7: 下 | W7: 上 | X7: 中 | Y7: 下 | Z7: 上 | AA7: 中 | AB7: 下 | AC7: 上 | AD7: 中 | AE7: 下 | AF7: 上 | AG7: 中 | AH7: 下 | AI7: 上 | AJ7: 中 | AK7: 下 | AL7: 上 | AM7: 中 | AN7: 下 | AO7: 上 | AP7: 中 | AQ7: 下 | AR7: 上 | AS7: 中 | AT7: 下 | AU7: 上 | AV7: 中 | AW7: 下 | AX7: 上 | AY7: 中 | AZ7: 下 | BA7: 上 | BB7: 中 | BC7: 下 | BD7: 上 | BE7: 中 | BF7: 下 | BG7: 上 | BH7: 中 | BI7: 下
B8: 水稲 (ﾋﾉﾋｶﾘ) | AA8: ○ | AB8: - | AC8: - | AD8: △ | AE8: - | AF8: - | AG8: - | AH8: - | AI8: - | AJ8: - | AK8: - | AL8: - | AM8: - | AN8: - | AO8: - | AP8: □ | AQ8: ■ | AR8: ■ | AS8: ■ | AT8: ■ | AU8: ■ | AV8: ■ | AW8: ■ | AX8: ■ | AY8: ■ | AZ8: ■
AA9: 播種 | AD9: 移植 | AO9: 収穫→乾燥調製→出荷
A11: No. | C11: 生産者名 | J11: 住所 | R11: 生年 月日 | U11: ｸﾞﾘｰﾝ農業生産宣言番号※ | Z11: ほ場の所在地 | AK11: 品目 (作型)※※ | AP11: 計画（生産計画承認申請時） | AZ11: 確認(認証申請時)
AP12: 栽培面積 (a) | AU12: 出荷予定量 (kg) | AZ12: 栽培面積 (a) | BE12: 出荷予定量 (kg)
A14: 1 | C14: ・・ ・・ | J14: …………*-* | R14: S**.*.* | U14: 1-300000 | Z14: …………*-*-* | AP14: 10 | AU14: 500 | AZ14: 10 | BE14: 520
A15: 2 | C15: 〃 | J15: 〃 | R15: 〃 | U15: 〃 | Z15: …………*-*-** | AP15: 15 | AU15: =500*1.5 -> 750 | AZ15: 15 | BE15: 750
A16: 3 | C16: ・・ ・・ | J16: …………**-* | R16: S**.*.* | U16: 1-300002 | Z16: …………*-**-* | AP16: 20 | AU16: 1000 | AZ16: 20 | BE16: 1000
A17: 4 | C17: ・・ ・・ | J17: …………*-** | R17: S**.*.* | U17: 1-300003 | Z17: …………**-**-* | AP17: 15 | AU17: 750 | AZ17: 15 | BE17: 700
A18: 5 | C18: ・・ ・・ | J18: …………**-** | R18: S**.*.* | U18: 1-300004 | Z18: …………**-*** | AP18: 10 | AU18: 500 | AZ18: 0 | BE18: 0
A19: 6 | C19: 〃 | J19: 〃 | R19: 〃 | U19: 〃 | Z19: …………**-***-* | AP19: 10 | AU19: 500 | AZ19: 0 | BE19: 0
A20: 7 | C20: 〃 | J20: 〃 | R20: 〃 | U20: 〃 | Z20: …………**-**-** | AP20: 20 | AU20: 1000 | AZ20: 20 | BE20: 1000
A21: 8
A22: 9
A23: 10
A24: 合計 | AP24: =SUM(AP14:AT23) -> 100 | AU24: =SUM(AU14:AY23) -> 5000
A25: ※計画承認申請時に宣言書の交付を受けていない場合は、生産宣言申出書を提出のうえ、「申出中」と記入。 | AM25: ※※品目が複数ある場合に記載し、栽培計画欄と合わせること。
A26: 注）変更届の提出時、ほ場の所在地及び面積を変更する場合は、一重線で見え消しするなど変更箇所がわかるように記載すること。

Sheet リスト
A1: リスト
A2: 作物名 | B2: 品種 | C2: 作 型 等 | D2: 主な栽培期間 | E2: 化学肥料施用 量（窒素成分） (kg／10ａ) | F2: 化学合成農薬使用回数※ | G2: 作業名
A3: 水稲 | B3: コシヒカリ等 | C3: 早期、早植え | D3: 3～9月 | E3: 9 | F3: 19 | G3: 播種
A4: 水稲 | B4: あきげしき等 | C4: 早植え | D4: 4～10月 | E4: 10 | F4: 19 | G4: 定植
A5: 水稲 | B5: ヒノヒカリ等 | C5: 中生 | D5: 5～10月 | E5: 10 | F5: 19 | G5: 収穫
A6: 水稲 | B6: あきまさり、 ヒヨクモチ等 | C6: 晩生 | D6: 5～11月 | E6: 11 | F6: 19 | G6: 出荷
A7: 水稲 | B7: ミズホチカラ等 | C7: 全作型（多収栽培） | D7: 4～11月 | E7: 13 | F7: 19
A8: 大麦 | D8: 11～5月 | E8: 7 | F8: 8
A9: 小麦 | D9: 11～6月 | E9: 11 | F9: 8
A10: 小麦 | B10: パン用品種 | D10: 11～6月 | E10: 14 | F10: 8
A11: 大豆 | D11: 5～11月 | E11: 2 | F11: 12
A12: そば | C12: 秋そば | D12: 8～12月 | E12: 3 | F12: 1
A13: そば | C13: 春そば | D13: 4～6月 | E13: 5 | F13: 1
A14: ひえ | D14: 5～10月 | E14: 4 | F14: 2
A15: あわ | D15: 6～11月 | E15: 5 | F15: 1
A16: きび | D16: 7～11月 | E16: 5 | F16: 1
A17: とうもろこし（子実用） | E17: 16 | F17: 8
A18: はとむぎ | D18: 5～10月 | E18: 14 | F18: 6
A19: ごま | D19: 6～10月 | E19: 19 | F19: 3
A20: トマト | C20: 促成長期 | D20: 8～6月 | E20: 44 | F20: 77
A21: トマト | C21: 促成 | D21: 10～6月 | E21: 36 | F21: 72
A22: トマト | C22: 夏秋雨よけ | D22: 4～11月 | E22: 30 | F22: 46
A23: トマト | C23: 抑制加温 | D23: 8～2月 | E23: 28 | F23: 58
A24: トマト | C24: 抑制無加温 | D24: 8～12月 | E24: 20 | F24: 41
A25: ミニトマト | C25: 促成 | D25: 7～6月 | E25: 35 | F25: 66
A26: ミニトマト | C26: 夏秋雨よけ | D26: 3～11月 | E26: 30 | F26: 43
A27: なす | C27: 促成 | D27: 7～6月 | E27: 63 | F27: 60
A28: なす | C28: 夏秋 | D28: 2～11月 | E28: 50 | F28: 36
A29: ピーマン | C29: 促成 | D29: 8～6月 | E29: 50 | F29: 42
A30: ピーマン | C30: 夏秋 | D30: 3～11月 | E30: 37 | F30: 32
A31: きゅうり | C31: 促成 | D31: 9～2月 | E31: 36 | F31: 43
A32: きゅうり | C32: 半促成 | D32: 12～6月 | E32: 36 | F32: 50
A33: きゅうり | C33: 夏秋雨よけ 高原露地 | D33: 4～11月 | E33: 45 | F33: 36
A34: きゅうり | C34: 抑制加温 | D34: 7～12月 | E34: 28 | F34: 34
A35: きゅうり | C35: 抑制無加温 | D35: 6～11月 | E35: 28 | F35: 30
A36: かぼちゃ | C36: 半促成 | D36: 10～6月 | E36: 28 | F36: 17
A37: かぼちゃ | C37: 普通 | E37: 18 | F37: 16
A38: すいか | C38: 促成・半促成 | D38: 10～6月 | E38: 20 | F38: 26
A39: すいか | C39: 抑制 | D39: 7～12月 | E39: 20 | F39: 21
A40: メロン | B40: ﾌﾟﾘﾝｽ等 (ﾏｸﾜ系) | C40: 半促成 | D40: 7～12月 | E40: 17 | F40: 13
A41: メロン | B41: ﾎｰﾑﾗﾝ等 (ﾊﾈﾃﾞｭｰ系) | C41: 半促成 | D41: 11～6月 | E41: 10 | F41: 13
A42: メロン | B42: ｱﾝﾃﾞｽ等 (ﾈｯﾄ系) | C42: 半促成 | D42: 11～6月 | E42: 13 | F42: 18
A43: メロン | B43: アールス系 | C43: 周年 | D43: － | E43: 15 | F43: 25
A44: にがうり | C44: 半促成 | D44: 3～7月 | E44: 40 | F44: 14
A45: いんげん | C45: 促成 | D45: 10～6月 | E45: 40 | F45: 27
A46: いんげん | C46: 半促成 | D46: 1～7月 | E46: 33 | F46: 19
A47: いんげん | C47: トンネル早熟 | D47: 3～7月 | E47: 23 | F47: 13
A48: いんげん | C48: 抑制・露地秋作 | D48: 8～12月 | E48: 23 | F48: 13
A49: そらまめ | C49: ﾊｳｽ､ﾄﾝﾈﾙ、露地 | D49: 9～5月 | E49: 18 | F49: 13
A50: 未成熟エンドウ | C50: 夏まきハウス | D50: 8～5月 | E50: 35 | F50: 33
A51: 未成熟エンドウ | C51: 秋まき | D51: 11～6月 | E51: 17 | F51: 27
A52: オクラ | C52: ﾄﾝﾈﾙ・早熟 | D52: 3～11月 | E52: 31 | F52: 16
A53: いちご | C53: 促成 | D53: 5～5月(13ヶ月) | E53: 24 | F53: 52
A54: いちご | C54: 高設 | D54: 5～6月(14ヶ月) | E54: 28 | F54: 60
A55: スイートコーン | C55: ﾊｳｽ､ﾄﾝﾈﾙ、露地 | D55: 1～7月 | E55: 35 | F55: 10
A56: ブロッコリー | C56: 夏・秋まき | D56: 8～3月 | E56: 32 | F56: 19
A57: カリフラワー | C57: 夏まき | D57: 8～3月 | E57: 32 | F57: 15
A58: 茎ブロッコリー | D58: 8～3月 | E58: 31 | F58: 8
A59: キャベツ | C59: 平坦地夏・秋まき | D59: 8～5月 | E59: 24 | F59: 20
A60: キャベツ | C60: 高原春・夏まき | D60: 2～11月 | E60: 24 | F60: 24
A61: はくさい | C61: 秋まき | D61: 8～１月 | E61: 20 | F61: 15
A62: はくさい | C62: 冬まき | D62: 12～6月 | E62: 25 | F62: 7
A63: ほうれんそう | C63: 平坦地 | D63: 9～5月 | E63: 10 | F63: 8
A64: ほうれんそう | C64: 高原 | D64: 3～11月 | E64: 10 | F64: 7
A65: チンゲンサイ | C65: 秋・冬まき | D65: 9～5月 | E65: 10 | F65: 7
A66: チンゲンサイ | C66: 春・夏まき | D66: 3～10月 | E66: 10 | F66: 12
A67: コマツナ | C67: 周年 | D67: 周年 | E67: 12 | F67: 8
A68: ミズナ | C68: 周年 | D68: 周年 | E68: 24 | F68: 8
A69: しゅんぎく | C69: 摘み取り | D69: 9～3月 | E69: 30 | F69: 10
A70: レタス | C70: 平坦地夏・秋まき | D70: 8～3月 | E70: 24 | F70: 16
A71: 非結球レタス | C71: 周年 | D71: 周年 | E71: 24 | F71: 12
A72: 深ねぎ | C72: 春・秋まき | D72: 周年 | E72: 24 | F72: 15
A73: ねぎ（小ねぎ） | C73: 周年 | D73: 周年 | E73: 25 | F73: 8
A74: ニラ | C74: 播種～１回目収穫 | D74: 周年 | E74: 35 | F74: 15
A75: ニラ | C75: 収穫２回目以降 | D75: 周年 | E75: 4 | F75: 4
A76: たまねぎ | C76: 早出し | D76: 9～4月 | E76: 18 | F76: 20
A77: たまねぎ | C77: 普通 | D77: 9～6月 | E77: 20 | F77: 24
A78: 葉たまねぎ | D78: 9～3月 | E78: 18 | F78: 14
A79: アスパラガス | C79: ﾊｳｽ２年目以降 | D79: 周年 | E79: 50 | F79: 21
A80: だいこん | C80: 平坦地 | D80: 8～4月 | E80: 15 | F80: 12
A81: だいこん | C81: 高原 | D81: 3～12月 | E81: 14 | F81: 18
A82: にんじん | C82: 夏まき 冬まき | D82: 7～3月 11～7月 | E82: 15 | F82: 14
A83: ごぼう | C83: 春まき・秋まき | D83: 3～2月 10～8月 | E83: 18 | F83: 11
A84: ごぼう | C84: 水田ﾄﾝﾈﾙ | D84: 10～6月 | E84: 18 | F84: 7
A85: カブ | C85: 周年 | D85: － | E85: 16 | F85: 10
A86: ばれいしょ | C86: 春作(ﾏﾙﾁ) | D86: 12～6月 | E86: 20 | F86: 10
A87: ばれいしょ | C87: 夏作 | D87: 3～9月 | E87: 16 | F87: 14
A88: ばれいしょ | C88: 秋作 | D88: 9～12月 | E88: 15 | F88: 8
A89: さといも | C89: ﾊｳｽ･ﾄﾝﾈﾙ・露地 | D89: 1～12月 | E89: 16 | F89: 8
A90: かんしょ | C90: 早堀りﾏﾙﾁ・普通堀り | D90: 2～11月 | E90: 5 | F90: 14
A91: れんこん | C91: 普通 | D91: 4～3月 | E91: 30 | F91: 6
A92: しょうが | C92: 露地 | D92: 4～11月 | E92: 23 | F92: 36
A93: ミョウガ | C93: 露地 | D93: 周年 | E93: 6 | F93: 4
A94: 青シソ | C94: 周年 | D94: 周年 | E94: 35 | F94: 21
A95: えごま | C95: 葉 | D95: 5～10月 | E95: 7 | F95: 2
A96: パセリ | C96: 周年 | D96: 周年 | E96: 40 | F96: 29
A97: セリ | C97: 土耕 | D97: 5～3月 | E97: 15 | F97: 5
A98: セルリー | C98: ハウス | D98: 6～4月 | E98: 40 | F98: 20
A99: にんにく | C99: 露地 | D99: 10～6月 | E99: 20 | F99: 8
A100: やまのいも | C100: 露地 | D100: 4～12月 | E100: 30 | F100: 15
A101: 阿蘇たかな | C101: 露地 | D101: １０～3月 | E101: 9 | F101: 2
A102: ヤーコン | C102: 露地 | D102: 3～12月 | E102: 12 | F102: 1
A103: きくいも | E103: 15 | F103: 3
A104: バジル | E104: 23 | F104: 15
A105: コリアンダー | E105: 19 | F105: 6
A106: 赤しそ | E106: 25 | F106: 6
A107: ベビーリーフ | B107: 非結球アブラナ科葉菜 類、非結球レタス、ふだ んそう、しゅんぎく、エン ダイブ、ほうれんそう、ア マランサス | C107: ハウス（平坦地） | D107: 4～11月 | E107: 5 | F107: 4
A108: ベビーリーフ | C108: ハウス(平坦地4～11 月を除く） | D108: 周年 | E108: 5 | F108: 2
A109: ズッキーニ | C109: 全作型 | D109: 9～5月 | E109: 23 | F109: 14
A110: 温州みかん | D110: 周年 | E110: 24 | F110: 22
A111: 中晩柑 | C111: 晩白柚、河内晩 柑 | D111: 周年 | E111: 28 | F111: 24
A112: 中晩柑 | C112: 不知火その他 | D112: 周年 | E112: 28 | F112: 22
A113: その他柑橘 | B113: キンカン | D113: 周年 | E113: 20 | F113: 13
A114: その他柑橘 | B114: レモン | D114: 周年 | E114: 28 | F114: 18
A115: その他柑橘 | B115: ユズ | D115: 周年 | E115: 22 | F115: 16
A116: ぶどう | D116: 周年 | E116: 8 | F116: 18
A117: かき | D117: 周年 | E117: 23 | F117: 17
A118: なし | D118: 周年 | E118: 23 | F118: 32
A119: くり | D119: 周年 | E119: 16 | F119: 4
A120: もも | D120: 周年 | E120: 12 | F120: 17
A121: すもも | D121: 周年 | E121: 12 | F121: 16
A122: うめ | D122: 周年 | E122: 18 | F122: 9
A123: ｷｳｲﾌﾙｰﾂ | D123: 周年 | E123: 14 | F123: 12
A124: びわ | D124: 周年 | E124: 20 | F124: 13
A125: イチジク | D125: 周年 | E125: 7 | F125: 15
A126: ブルーベリー | D126: 周年 | E126: 9 | F126: 8
A127: マンゴー | D127: 周年 | E127: 20 | F127: 15
A128: オリーブ | C128: ４～９年生株 | D128: 周年 | E128: 10 | F128: 10
A129: オリーブ | C129: 成木 | D129: 周年 | E129: 15 | F129: 10
A130: 茶 | D130: 周年 | E130: 56 | F130: 14
A131: えごま | C131: 子実 | D131: 6～10月 | E131: 5 | F131: 2
A132: なたね | D132: 9～6月 | E132: 14 | F132: 2
A133: たけのこ | E133: 25 | F133: 1
A134: 食用桑（葉） | D134: 周年 | E134: 33 | F134: 2
A135: 大麦若葉 | E135: 8 | F135: -

Sheet データ一覧表
A1: 計画承認申請書 | K1: 栽培基準 | CV1: 生産計画書 | GE1: 生産確認書 | JN1: 実績報告書 | KI1: 生産履歴記帳簿
A2: 号数 | B2: 承認年月日(年) | C2: 承認年月日(月) | D2: 承認年月日(日) | E2: 知事名 | F2: (確認責任者)団体名 | G2: (確認責任者)住所 | H2: (確認責任者)氏名 | I2: (確認責任者)電話番号 | J2: (確認責任者)携帯電話番号 | K2: 栽培基準番号 | L2: 取組団体名 | M2: 区分(有作くん) | N2: 区分(有作くん100) | O2: 確認責任者 | P2: 栽培責任者 | Q2: 栽培計画(品目) | R2: 栽培計画(作型) | S2: 栽培計画(栽培開始月) | T2: 作業名(播種 )月 | U2: 作業名(播種 )旬 | V2: 作業名(定植 )月 | W2: 作業名(定植 )旬 | X2: 作業名(収穫 )月 | Y2: 作業名(収穫 )旬 | Z2: 作業名(出荷 )月 | AA2: 作業名(出荷 )旬 | AB2: 土づくり・施肥管理_使用時期 | AC2: 土づくり・施肥管理_資材名 | AD2: 土づくり・施肥管理_資材の窒素成分量(%) | AE2: 土づくり・施肥管理_有機率(%) | AF2: 土づくり・施肥管理_資材の施用量(kg/10a) | AG2: 土づくり・施肥管理_窒素施用量(kg/10a) | AH2: 土づくり・施肥管理_うち化学肥料窒素施用量(kg/10a) | AI2: 土づくり・施肥管理_使用時期 | AJ2: 土づくり・施肥管理_資材名 | AK2: 土づくり・施肥管理_資材の窒素成分量(%) | AL2: 土づくり・施肥管理_有機率(%) | AM2: 土づくり・施肥管理_資材の施用量(kg/10a) | AN2: 土づくり・施肥管理_窒素施用量(kg/10a) | AO2: 土づくり・施肥管理_うち化学肥料窒素施用量(kg/10a) | AP2: 土づくり・施肥管理_使用時期 | AQ2: 土づくり・施肥管理_資材名 | AR2: 土づくり・施肥管理_資材の窒素成分量(%) | AS2: 土づくり・施肥管理_有機率(%) | AT2: 土づくり・施肥管理_資材の施用量(kg/10a) | AU2: 土づくり・施肥管理_窒素施用量(kg/10a) | AV2: 土づくり・施肥管理_うち化学肥料窒素施用量(kg/10a) | AW2: 土づくり・施肥管理_使用時期 | AX2: 土づくり・施肥管理_資材名 | AY2: 土づくり・施肥管理_資材の窒素成分量(%) | AZ2: 土づくり・施肥管理_有機率(%) | BA2: 土づくり・施肥管理_資材の施用量(kg/10a) | BB2: 土づくり・施肥管理_窒素施用量(kg/10a) | BC2: 土づくり・施肥管理_うち化学肥料窒素施用量(kg/10a) | BD2: 土づくり・施肥管理_使用時期 | BE2: 土づくり・施肥管理_資材名 | BF2: 土づくり・施肥管理_資材の窒素成分量(%) | BG2: 土づくり・施肥管理_有機率(%) | BH2: 土づくり・施肥管理_資材の施用量(kg/10a) | BI2: 土づくり・施肥管理_窒素施用量(kg/10a) | BJ2: 土づくり・施肥管理_うち化学肥料窒素施用量(kg/10a) | BK2: 雑草・病害虫防除管理_使用時期 | BL2: 雑草・病害虫防除管理_資材名 | BM2: 雑草・病害虫防除管理_使用目的 | BN2: 雑草・病害虫防除管理_成分名 | BO2: 雑草・病害虫防除管理_使用回数(成分回数) | BP2: 雑草・病害虫防除管理_使用時期 | BQ2: 雑草・病害虫防除管理_資材名 | BR2: 雑草・病害虫防除管理_使用目的 | BS2: 雑草・病害虫防除管理_成分名 | BT2: 雑草・病害虫防除管理_使用回数(成分回数) | BU2: 雑草・病害虫防除管理_使用時期 | BV2: 雑草・病害虫防除管理_資材名 | BW2: 雑草・病害虫防除管理_使用目的 | BX2: 雑草・病害虫防除管理_成分名 | BY2: 雑草・病害虫防除管理_使用回数(成分回数) | BZ2: 雑草・病害虫防除管理_使用時期 | CA2: 雑草・病害虫防除管理_資材名 | CB2: 雑草・病害虫防除管理_使用目的 | CC2: 雑草・病害虫防除管理_成分名 | CD2: 雑草・病害虫防除管理_使用回数(成分回数) | CE2: 雑草・病害虫防除管理_使用時期 | CF2: 雑草・病害虫防除管理_資材名 | CG2: 雑草・病害虫防除管理_使用目的 | CH2: 雑草・病害虫防除管理_成分名 | CI2: 雑草・病害虫防除管理_使用回数(成分回数) | CJ2: 項目 | CK2: 具体的内容 | CL2: 項目 | CM2: 具体的内容 | CN2: 項目 | CO2: 具体的内容 | CP2: 項目 | CQ2: 具体的内容 | CR2: 項目 | CS2: 具体的内容 | CT2: 項目 | CU2: 具体的内容 | CV2: 生産計画番号 | CW2: 取組団体名 | CX2: 区分(有作くん) | CY2: 区分(有作くん１００) | CZ2: 確認責任者 | DA2: 栽培責任者 | DB2: 品目 | DC2: 作型 | DD2: 栽培開始月 | DE2: 作業計画_作業名_月 | DF2: 作業計画_作業名_旬 | DG2: 作業計画_作業名_月 | DH2: 作業計画_作業名_旬 | DI2: 作業計画_作業名_月 | DJ2: 作業計画_作業名_旬 | DK2: 作業計画_作業名_月 | DL2: 作業計画_作業名_旬 | DM2: 生産者名 | DN2: 住所 | DO2: 生年月日 | DP2: ｸﾞﾘｰﾝ農業生産宣言番号※ | DQ2: ほ場の所在地 | DR2: 計画（生産計画承認申請時）_栽培面積(a) | DS2: 計画（生産計画承認申請時）_出荷予定量(kg) | DT2: 生産者名 | DU2: 住所 | DV2: 生年月日 | DW2: ｸﾞﾘｰﾝ農業生産宣言番号※ | DX2: ほ場の所在地 | DY2: 計画（生産計画承認申請時）_栽培面積(a) | DZ2: 計画（生産計画承認申請時）_出荷予定量(kg) | EA2: 生産者名 | EB2: 住所 | EC2: 生年月日 | ED2: ｸﾞﾘｰﾝ農業生産宣言番号※ | EE2: ほ場の所在地 | EF2: 計画（生産計画承認申請時）_栽培面積(a) | EG2: 計画（生産計画承認申請時）_出荷予定量(kg) | EH2: 生産者名 | EI2: 住所 | EJ2: 生年月日 | EK2: ｸﾞﾘｰﾝ農業生産宣言番号※ | EL2: ほ場の所在地 | EM2: 計画（生産計画承認申請時）_栽培面積(a) | EN2: 計画（生産計画承認申請時）_出荷予定量(kg) | EO2: 生産者名 | EP2: 住所 | EQ2: 生年月日 | ER2: ｸﾞﾘｰﾝ農業生産宣言番号※ | ES2: ほ場の所在地 | ET2: 計画（生産計画承認申請時）_栽培面積(a) | EU2: 計画（生産計画承認申請時）_出荷予定量(kg) | EV2: 生産者名 | EW2: 住所 | EX2: 生年月日 | EY2: ｸﾞﾘｰﾝ農業生産宣言番号※ | EZ2: ほ場の所在地 | FA2: 計画（生産計画承認申請時）_栽培面積(a) | FB2: 計画（生産計画承認申請時）_出荷予定量(kg) | FC2: 生産者名 | FD2: 住所 | FE2: 生年月日 | FF2: ｸﾞﾘｰﾝ農業生産宣言番号※ | FG2: ほ場の所在地 | FH2: 計画（生産計画承認申請時）_栽培面積(a) | FI2: 計画（生産計画承認申請時）_出荷予定量(kg) | FJ2: 生産者名 | FK2: 住所 | FL2: 生年月日 | FM2: ｸﾞﾘｰﾝ農業生産宣言番号※ | FN2: ほ場の所在地 | FO2: 計画（生産計画承認申請時）_栽培面積(a) | FP2: 計画（生産計画承認申請時）_出荷予定量(kg) | FQ2: 生産者名 | FR2: 住所 | FS2: 生年月日 | FT2: ｸﾞﾘｰﾝ農業生産宣言番号※ | FU2: ほ場の所在地 | FV2: 計画（生産計画承認申請時）_栽培面積(a) | FW2: 計画（生産計画承認申請時）_出荷予定量(kg) | FX2: 生産者名 | FY2: 住所 | FZ2: 生年月日 | GA2: ｸﾞﾘｰﾝ農業生産宣言番号※ | GB2: ほ場の所在地 | GC2: 計画（生産計画承認申請時）_栽培面積(a) | GD2: 計画（生産計画承認申請時）_出荷予定量(kg) | GE2: 生産確認番号 | GF2: 取組団体名 | GG2: 区分(有作くん) | GH2: 区分(有作くん１００) | GI2: 確認責任者 | GJ2: 栽培責任者 | GK2: 品目 | GL2: 作型 | GM2: 栽培開始月 | GN2: 作業計画_作業名_月 | GO2: 作業計画_作業名_旬 | GP2: 作業計画_作業名_月 | GQ2: 作業計画_作業名_旬 | GR2: 作業計画_作業名_月 | GS2: 作業計画_作業名_旬 | GT2: 作業計画_作業名_月 | GU2: 作業計画_作業名_旬 | GV2: 生産者名 | GW2: 住所 | GX2: 生年月日 | GY2: ｸﾞﾘｰﾝ農業生産宣言番号※ | GZ2: ほ場の所在地 | HA2: 確認(認証申請時)_栽培面積(a) | HB2: 確認(認証申請時)_出荷予定量(kg) | HC2: 生産者名 | HD2: 住所 | HE2: 生年月日 | HF2: ｸﾞﾘｰﾝ農業生産宣言番号※ | HG2: ほ場の所在地 | HH2: 確認(認証申請時)_栽培面積(a) | HI2: 確認(認証申請時)_出荷予定量(kg) | HJ2: 生産者名 | HK2: 住所 | HL2: 生年月日 | HM2: ｸﾞﾘｰﾝ農業生産宣言番号※ | HN2: ほ場の所在地 | HO2: 確認(認証申請時)_栽培面積(a) | HP2: 確認(認証申請時)_出荷予定量(kg) | HQ2: 生産者名 | HR2: 住所 | HS2: 生年月日 | HT2: ｸﾞﾘｰﾝ農業生産宣言番号※ | HU2: ほ場の所在地 | HV2: 確認(認証申請時)_栽培面積(a) | HW2: 確認(認証申請時)_出荷予定量(kg) | HX2: 生産者名 | HY2: 住所 | HZ2: 生年月日 | IA2: ｸﾞﾘｰﾝ農業生産宣言番号※ | IB2: ほ場の所在地 | IC2: 確認(認証申請時)_栽培面積(a) | ID2: 確認(認証申請時)_出荷予定量(kg) | IE2: 生産者名 | IF2: 住所 | IG2: 生年月日 | IH2: ｸﾞﾘｰﾝ農業生産宣言番号※ | II2: ほ場の所在地 | IJ2: 確認(認証申請時)_栽培面積(a) | IK2: 確認(認証申請時)_出荷予定量(kg) | IL2: 生産者名 | IM2: 住所 | IN2: 生年月日 | IO2: ｸﾞﾘｰﾝ農業生産宣言番号※ | IP2: ほ場の所在地 | IQ2: 確認(認証申請時)_栽培面積(a) | IR2: 確認(認証申請時)_出荷予定量(kg) | IS2: 生産者名 | IT2: 住所 | IU2: 生年月日 | IV2: ｸﾞﾘｰﾝ農業生産宣言番号※ | IW2: ほ場の所在地 | IX2: 確認(認証申請時)_栽培面積(a) | IY2: 確認(認証申請時)_出荷予定量(kg) | IZ2: 生産者名 | JA2: 住所 | JB2: 生年月日 | JC2: ｸﾞﾘｰﾝ農業生産宣言番号※ | JD2: ほ場の所在地 | JE2: 確認(認証申請時)_栽培面積(a) | JF2: 確認(認証申請時)_出荷予定量(kg) | JG2: 生産者名 | JH2: 住所 | JI2: 生年月日 | JJ2: ｸﾞﾘｰﾝ農業生産宣言番号※ | JK2: ほ場の所在地 | JL2: 確認(認証申請時)_栽培面積(a) | JM2: 確認(認証申請時)_出荷予定量(kg) | JN2: 実績報告書報告番号 | JO2: 実績報告年月日(元号) | JP2: 実績報告年月日(年) | JQ2: 内容変更年月日(月) | JR2: 内容変更年月日(日) | JS2: 知事名 | JT2: (確認責任者)_団体名 | JU2: (確認責任者)_住所 | JV2: (確認責任者)_氏名 | JW2: 生産実績_品目（作型） | JX2: 生産実績_生産者数（人） | JY2: 生産実績_作付面積（ａ） | JZ2: 生産実績_生産者数（人）合計 | KA2: 生産実績_作付面積（ａ）合計 | KB2: 出荷実績_品目（作型） | KC2: 出荷実績_出荷量（ｋｇ） | KD2: 出荷実績_出荷時期 | KE2: 出荷実績_主な出荷先 | KF2: 出荷実績_出荷量（ｋｇ）合計 | KG2: 出荷実績_出荷時期合計 | KH2: 出荷実績_主な出荷先合計 | KI2: 団体名 | KJ2: 生産者名 | KK2: 住所 | KL2: 品目名(作型) | KM2: 品種名 | KN2: 対象ほ場_地番 | KO2: 対象ほ場_面積(a) | KP2: 対象ほ場_作付日 | KQ2: 対象ほ場_作付方法 | KR2: 対象ほ場_収穫開始日 | KS2: 対象ほ場_地番 | KT2: 対象ほ場_面積(a) | KU2: 対象ほ場_作付日 | KV2: 対象ほ場_作付方法 | KW2: 対象ほ場_収穫開始日 | KX2: 対象ほ場_地番 | KY2: 対象ほ場_面積(a) | KZ2: 対象ほ場_作付日 | LA2: 対象ほ場_作付方法 | LB2: 対象ほ場_収穫開始日 | LC2: 対象ほ場_地番 | LD2: 対象ほ場_面積(a) | LE2: 対象ほ場_作付日 | LF2: 対象ほ場_作付方法 | LG2: 対象ほ場_収穫開始日 | LH2: 対象ほ場_地番 | LI2: 対象ほ場_面積(a) | LJ2: 対象ほ場_作付日 | LK2: 対象ほ場_作付方法 | LL2: 対象ほ場_収穫開始日 | LM2: 土づくり・施肥_堆肥等_使用資材名称 | LN2: 土づくり・施肥_堆肥等_施用量(t/10a) | LO2: 土づくり・施肥_堆肥等_施用日 | LP2: 土づくり・施肥_堆肥等_備考(ほ場No.等) | LQ2: 土づくり・施肥_堆肥等_使用資材名称 | LR2: 土づくり・施肥_堆肥等_施用量(t/10a) | LS2: 土づくり・施肥_堆肥等_施用日 | LT2: 土づくり・施肥_堆肥等_備考(ほ場No.等) | LU2: 土づくり・施肥_堆肥等_使用資材名称 | LV2: 土づくり・施肥_堆肥等_施用量(t/10a) | LW2: 土づくり・施肥_堆肥等_施用日 | LX2: 土づくり・施肥_堆肥等_備考(ほ場No.等) | LY2: 土づくり・施肥_土壌改良資材_使用資材名称 | LZ2: 土づくり・施肥_土壌改良資材_施用量(t/10a) | MA2: 土づくり・施肥_土壌改良資材_施用日 | MB2: 土づくり・施肥_土壌改良資材_備考(ほ場No.等) | MC2: 土づくり・施肥_土壌改良資材_使用資材名称 | MD2: 土づくり・施肥_土壌改良資材_施用量(t/10a) | ME2: 土づくり・施肥_土壌改良資材_施用日 | MF2: 土づくり・施肥_土壌改良資材_備考(ほ場No.等) | MG2: 土づくり・施肥_土壌改良資材_使用資材名称 | MH2: 土づくり・施肥_土壌改良資材_施用量(t/10a) | MI2: 土づくり・施肥_土壌改良資材_施用日 | MJ2: 土づくり・施肥_土壌改良資材_備考(ほ場No.等) | MK2: 土づくり・施肥_基肥_使用資材名称 | ML2: 土づくり・施肥_基肥_施用量(t/10a) | MM2: 土づくり・施肥_基肥_施用日 | MN2: 土づくり・施肥_基肥_備考(ほ場No.等) | MO2: 土づくり・施肥_基肥_使用資材名称 | MP2: 土づくり・施肥_基肥_施用量(t/10a) | MQ2: 土づくり・施肥_基肥_施用日 | MR2: 土づくり・施肥_基肥_備考(ほ場No.等) | MS2: 土づくり・施肥_基肥_使用資材名称 | MT2: 土づくり・施肥_基肥_施用量(t/10a) | MU2: 土づくり・施肥_基肥_施用日 | MV2: 土づくり・施肥_基肥_備考(ほ場No.等) | MW2: 土づくり・施肥_基肥_使用資材名称 | MX2: 土づくり・施肥_基肥_施用量(t/10a) | MY2: 土づくり・施肥_基肥_施用日 | MZ2: 土づくり・施肥_基肥_備考(ほ場No.等) | NA2: 土づくり・施肥_追肥_使用資材名称 | NB2: 土づくり・施肥_追肥_施用量(t/10a) | NC2: 土づくり・施肥_追肥_施用日 | ND2: 土づくり・施肥_追肥_備考(ほ場No.等) | NE2: 土づくり・施肥_追肥_使用資材名称 | NF2: 土づくり・施肥_追肥_施用量(t/10a) | NG2: 土づくり・施肥_追肥_施用日 | NH2: 土づくり・施肥_追肥_備考(ほ場No.等) | NI2: 土づくり・施肥_追肥_使用資材名称 | NJ2: 土づくり・施肥_追肥_施用量(t/10a) | NK2: 土づくり・施肥_追肥_施用日 | NL2: 土づくり・施肥_追肥_備考(ほ場No.等) | NM2: 土づくり・施肥_追肥_使用資材名称 | NN2: 土づくり・施肥_追肥_施用量(t/10a) | NO2: 土づくり・施肥_追肥_施用日 | NP2: 土づくり・施肥_追肥_備考(ほ場No.等) | NQ2: 雑草・病害虫防除等_除草剤_使用資材名称 | NR2: 雑草・病害虫防除等_除草剤_散布日１回目 | NS2: 雑草・病害虫防除等_除草剤_散布日２回目 | NT2: 雑草・病害虫防除等_除草剤_散布日３回目 | NU2: 雑草・病害虫防除等_除草剤_散布日４回目 | NV2: 雑草・病害虫防除等_除草剤_散布日５回目 | NW2: 雑草・病害虫防除等_除草剤_使用資材名称 | NX2: 雑草・病害虫防除等_除草剤_散布日１回目 | NY2: 雑草・病害虫防除等_除草剤_散布日２回目 | NZ2: 雑草・病害虫防除等_除草剤_散布日３回目 | OA2: 雑草・病害虫防除等_除草剤_散布日４回目 | OB2: 雑草・病害虫防除等_除草剤_散布日５回目 | OC2: 雑草・病害虫防除等_除草剤_使用資材名称 | OD2: 雑草・病害虫防除等_除草剤_散布日１回目 | OE2: 雑草・病害虫防除等_除草剤_散布日２回目 | OF2: 雑草・病害虫防除等_除草剤_散布日３回目 | OG2: 雑草・病害虫防除等_除草剤_散布日４回目 | OH2: 雑草・病害虫防除等_除草剤_散布日５回目 | OI2: 雑草・病害虫防除等_殺菌剤_使用資材名称 | OJ2: 雑草・病害虫防除等_殺菌剤_散布日１回目 | OK2: 雑草・病害虫防除等_殺菌剤_散布日２回目 | OL2: 雑草・病害虫防除等_殺菌剤_散布日３回目 | OM2: 雑草・病害虫防除等_殺菌剤_散布日４回目 | ON2: 雑草・病害虫防除等_殺菌剤_散布日５回目 | OO2: 雑草・病害虫防除等_殺菌剤_使用資材名称 | OP2: 雑草・病害虫防除等_殺菌剤_散布日１回目 | OQ2: 雑草・病害虫防除等_殺菌剤_散布日２回目 | OR2: 雑草・病害虫防除等_殺菌剤_散布日３回目 | OS2: 雑草・病害虫防除等_殺菌剤_散布日４回目 | OT2: 雑草・病害虫防除等_殺菌剤_散布日５回目 | OU2: 雑草・病害虫防除等_殺菌剤_使用資材名称 | OV2: 雑草・病害虫防除等_殺菌剤_散布日１回目 | OW2: 雑草・病害虫防除等_殺菌剤_散布日２回目 | OX2: 雑草・病害虫防除等_殺菌剤_散布日３回目 | OY2: 雑草・病害虫防除等_殺菌剤_散布日４回目 | OZ2: 雑草・病害虫防除等_殺菌剤_散布日５回目 | PA2: 雑草・病害虫防除等_殺菌剤_使用資材名称 | PB2: 雑草・病害虫防除等_殺菌剤_散布日１回目 | PC2: 雑草・病害虫防除等_殺菌剤_散布日２回目 | PD2: 雑草・病害虫防除等_殺菌剤_散布日３回目 | PE2: 雑草・病害虫防除等_殺菌剤_散布日４回目 | PF2: 雑草・病害虫防除等_殺菌剤_散布日５回目 | PG2: 雑草・病害虫防除等_殺菌剤_使用資材名称 | PH2: 雑草・病害虫防除等_殺菌剤_散布日１回目 | PI2: 雑草・病害虫防除等_殺菌剤_散布日２回目 | PJ2: 雑草・病害虫防除等_殺菌剤_散布日３回目 | PK2: 雑草・病害虫防除等_殺菌剤_散布日４回目 | PL2: 雑草・病害虫防除等_殺菌剤_散布日５回目 | PM2: 雑草・病害虫防除等_殺菌剤_使用資材名称 | PN2: 雑草・病害虫防除等_殺菌剤_散布日１回目 | PO2: 雑草・病害虫防除等_殺菌剤_散布日２回目 | PP2: 雑草・病害虫防除等_殺菌剤_散布日３回目 | PQ2: 雑草・病害虫防除等_殺菌剤_散布日４回目 | PR2: 雑草・病害虫防除等_殺菌剤_散布日５回目 | PS2: 雑草・病害虫防除等_殺虫剤_使用資材名称 | PT2: 雑草・病害虫防除等_殺虫剤_散布日１回目 | PU2: 雑草・病害虫防除等_殺虫剤_散布日２回目 | PV2: 雑草・病害虫防除等_殺虫剤_散布日３回目 | PW2: 雑草・病害虫防除等_殺虫剤_散布日４回目 | PX2: 雑草・病害虫防除等_殺虫剤_散布日５回目 | PY2: 雑草・病害虫防除等_殺虫剤_使用資材名称 | PZ2: 雑草・病害虫防除等_殺虫剤_散布日１回目 | QA2: 雑草・病害虫防除等_殺虫剤_散布日２回目 | QB2: 雑草・病害虫防除等_殺虫剤_散布日３回目 | QC2: 雑草・病害虫防除等_殺虫剤_散布日４回目 | QD2: 雑草・病害虫防除等_殺虫剤_散布日５回目 | QE2: 雑草・病害虫防除等_殺虫剤_使用資材名称 | QF2: 雑草・病害虫防除等_殺虫剤_散布日１回目 | QG2: 雑草・病害虫防除等_殺虫剤_散布日２回目 | QH2: 雑草・病害虫防除等_殺虫剤_散布日３回目 | QI2: 雑草・病害虫防除等_殺虫剤_散布日４回目 | QJ2: 雑草・病害虫防除等_殺虫剤_散布日５回目 | QK2: 雑草・病害虫防除等_殺虫剤_使用資材名称 | QL2: 雑草・病害虫防除等_殺虫剤_散布日１回目 | QM2: 雑草・病害虫防除等_殺虫剤_散布日２回目 | QN2: 雑草・病害虫防除等_殺虫剤_散布日３回目 | QO2: 雑草・病害虫防除等_殺虫剤_散布日４回目 | QP2: 雑草・病害虫防除等_殺虫剤_散布日５回目 | QQ2: 雑草・病害虫防除等_殺虫剤_使用資材名称 | QR2: 雑草・病害虫防除等_殺虫剤_散布日１回目 | QS2: 雑草・病害虫防除等_殺虫剤_散布日２回目 | QT2: 雑草・病害虫防除等_殺虫剤_散布日３回目 | QU2: 雑草・病害虫防除等_殺虫剤_散布日４回目 | QV2: 雑草・病害虫防除等_殺虫剤_散布日５回目 | QW2: 出荷予定（認証申請時）_収穫量(kg) | QX2: 出荷予定（認証申請時）_出荷予定日 | QY2: 出荷予定（認証申請時）_有作くんとしての出荷予定量(kg) | QZ2: 出荷実績_収穫量(kg) | RA2: 出荷実績_出荷日 | RB2: 出荷実績_有作くんとしての出荷量(kg) | RC2: 出荷予定（認証申請時）_収穫量(kg) | RD2: 出荷予定（認証申請時）_出荷予定日 | RE2: 出荷予定（認証申請時）_有作くんとしての出荷予定量(kg) | RF2: 出荷実績_収穫量(kg) | RG2: 出荷実績_出荷日 | RH2: 出荷実績_有作くんとしての出荷量(kg) | RI2: 出荷予定（認証申請時）_収穫量(kg) | RJ2: 出荷予定（認証申請時）_出荷予定日 | RK2: 出荷予定（認証申請時）_有作くんとしての出荷予定量(kg) | RL2: 出荷実績_収穫量(kg) | RM2: 出荷実績_出荷日 | RN2: 出荷実績_有作くんとしての出荷量(kg) | RO2: 出荷予定（認証申請時）_収穫量(kg) | RP2: 出荷予定（認証申請時）_出荷予定日 | RQ2: 出荷予定（認証申請時）_有作くんとしての出荷予定量(kg) | RR2: 出荷実績_収穫量(kg) | RS2: 出荷実績_出荷日 | RT2: 出荷実績_有作くんとしての出荷量(kg) | RU2: 出荷予定（認証申請時）_収穫量(kg) | RV2: 出荷予定（認証申請時）_出荷予定日 | RW2: 出荷予定（認証申請時）_有作くんとしての出荷予定量(kg) | RX2: 出荷実績_収穫量(kg) | RY2: 出荷実績_出荷日 | RZ2: 出荷実績_有作くんとしての出荷量(kg) | SA2: 出荷予定（認証申請時）_収穫量(kg) | SB2: 出荷予定（認証申請時）_出荷予定日 | SC2: 出荷予定（認証申請時）_有作くんとしての出荷予定量(kg) | SD2: 出荷実績_収穫量(kg) | SE2: 出荷実績_出荷日 | SF2: 出荷実績_有作くんとしての出荷量(kg) | SG2: 出荷予定（認証申請時）_収穫量(kg) | SH2: 出荷予定（認証申請時）_出荷予定日 | SI2: 出荷予定（認証申請時）_有作くんとしての出荷予定量(kg) | SJ2: 出荷実績_収穫量(kg) | SK2: 出荷実績_出荷日 | SL2: 出荷実績_有作くんとしての出荷量(kg) | SM2: 出荷予定（認証申請時）_収穫量(kg) | SN2: 出荷予定（認証申請時）_出荷予定日 | SO2: 出荷予定（認証申請時）_有作くんとしての出荷予定量(kg) | SP2: 出荷実績_収穫量(kg) | SQ2: 出荷実績_出荷日 | SR2: 出荷実績_有作くんとしての出荷量(kg) | SS2: 出荷予定（認証申請時）_収穫量(kg)合計 | ST2: 出荷予定（認証申請時）_出荷予定日合計 | SU2: 出荷予定（認証申請時）_有作くんとしての出荷予定量(kg)合計 | SV2: 出荷実績_収穫量(kg)合計 | SW2: 出荷実績_出荷日合計 | SX2: 出荷実績_有作くんとしての出荷量(kg)合計 | SY2: 出荷予定（認証申請時）_出荷先 | SZ2: 出荷実績_出荷先 | TA2: その他_期日 | TB2: その他_作業内容 | TC2: 具体的内容_廃棄物の適正な処理・利用 | TD2: 具体的内容_エネルギーの節減 | TE2: 具体的内容_新たな知見・情報の収集 | TF2: 具体的内容_生産情報の保存 | TG2: 具体的内容_農村やほ場の環境美化活動 | TH2: 具体的内容_都市・農村の交流（ｸﾞﾘｰﾝﾂｰﾘｽﾞﾑ） | TI2: 確認欄_確認日 | TJ2: 確認欄_確認責任者名

Sheet Default
A1: 栽培基準番号 | B1: 生産計画番号 | C1: 生産確認番号 | D1: 実績報告番号 | E1: 年 | F1: 月 | G1: 日 | H1: 旬 | I1: 元号 | J1: 検索MAX 件数 | K1: 作物名 リスト | L1: 重複なし 作物名リスト ※作物名が増えたら追加 | M1: 重複なし 作物名リスト
A2: 1 | B2: 1 | C2: 1 | D2: 1 | E2: 2020 | F2: 1 | G2: 1 | H2: 上 | I2: 令和 | J2: 1000 | K2: A3:A135 | L2: 水稲 | M2: $L$2:$L$91
E3: 2021 | F3: 2 | G3: 2 | H3: 中 | I3: 平成 | L3: 大麦
E4: 2022 | F4: 3 | G4: 3 | H4: 下 | I4: 昭和 | L4: 小麦
E5: 2023 | F5: 4 | G5: 4 | I5: 大正 | L5: 大豆
E6: 2024 | F6: 5 | G6: 5 | I6: 明治 | L6: そば
E7: 2025 | F7: 6 | G7: 6 | L7: ひえ
E8: 2026 | F8: 7 | G8: 7 | L8: あわ
E9: 2027 | F9: 8 | G9: 8 | L9: きび
E10: 2028 | F10: 9 | G10: 9 | L10: とうもろこし（子実用）
E11: 2029 | F11: 10 | G11: 10 | L11: はとむぎ
E12: 2030 | F12: 11 | G12: 11 | L12: ごま
E13: 2031 | F13: 12 | G13: 12 | L13: トマト
E14: 2032 | G14: 13 | L14: ミニトマト
E15: 2033 | G15: 14 | L15: なす
E16: 2034 | G16: 15 | L16: ピーマン
E17: 2035 | G17: 16 | L17: きゅうり
E18: 2036 | G18: 17 | L18: かぼちゃ
E19: 2037 | G19: 18 | L19: すいか
E20: 2038 | G20: 19 | L20: メロン
E21: 2039 | G21: 20 | L21: にがうり
E22: 2040 | G22: 21 | L22: いんげん
G23: 22 | L23: そらまめ
G24: 23 | L24: 未成熟エンドウ
G25: 24 | L25: オクラ
G26: 25 | L26: いちご
G27: 26 | L27: スイートコーン
G28: 27 | L28: ブロッコリー
G29: 28 | L29: カリフラワー
G30: 29 | L30: 茎ブロッコリー
G31: 30 | L31: キャベツ
G32: 31 | L32: はくさい
L33: ほうれんそう
L34: チンゲンサイ
L35: コマツナ
L36: ミズナ
L37: しゅんぎく
L38: レタス
L39: 非結球レタス
L40: 深ねぎ
L41: ねぎ（小ねぎ）
L42: ニラ
L43: たまねぎ
L44: 葉たまねぎ
L45: アスパラガス
L46: だいこん
L47: にんじん
L48: ごぼう
L49: カブ
L50: ばれいしょ
L51: さといも
L52: かんしょ
L53: れんこん
L54: しょうが
L55: ミョウガ
L56: 青シソ
L57: えごま
L58: パセリ
L59: セリ
L60: セルリー
L61: にんにく
L62: やまのいも
L63: 阿蘇たかな
L64: ヤーコン
L65: きくいも
L66: バジル
L67: コリアンダー
L68: 赤しそ
L69: ベビーリーフ
L70: ズッキーニ
L71: 温州みかん
L72: 中晩柑
L73: その他柑橘
L74: ぶどう
L75: かき
L76: なし
L77: くり
L78: もも
L79: すもも
L80: うめ
L81: ｷｳｲﾌﾙｰﾂ
L82: びわ
L83: イチジク
L84: ブルーベリー
L85: マンゴー
L86: オリーブ
L87: 茶
L88: なたね
L89: たけのこ
L90: 食用桑（葉）
L91: 大麦若葉

Sheet 別添５（１号の１） (hidden)
A1: 別記第１号様式の１ | L1: 別添５
J3: 第 1 号
J4: 令和 4年 4月 1日
A6: 熊本県知事 蒲島郁夫 様
G9: （確認責任者）
G10: 団体名 | I10: 有作くん特栽米生産組合
G11: 住 所 | I11: 熊本県熊本市中央区水前寺６丁目１８−２００
G12: 氏 名 | I12: 山田三郎 | M12: 印
G13: 電話番号 | J13: 096-383-5555
G14: 携帯電話番号 | J14: 080-3333-4444
A16: 令和4年度熊本型特別栽培農産物生産計画承認申請書
A19: 熊本型特別栽培農産物取扱要領第４の１の規定に基づき、関係書類を添えて申請します。
A22: 添付書類
A23: １ 栽培基準（別記第１号様式の２）
A24: ２ 生産計画書（別記第１号様式の３）
A25: ３ 誓約書の写し（必要に応じて）
A26: ４ くまもとグリーン農業生産宣言申出書（必要に応じて）
A28: 添付書類 ※ＪＡＳ生産工程管理者の場合
A29: １ 栽培基準（別記第１号様式の２）
A30: ２ 登録認定機関に提出した生産計画の写し
A31: （生産計画書の内容を含むこと）
A32: ３ 生産者名簿
A33: ４ 認定書及び定期検査の証拠書類等の写し

Sheet 別添６（１号の２） (hidden)
A1: 別記第１号様式の２ | AJ1: 別添６
A2: 令和4年度栽培基準
A3: 取組団体名： | G3: 有作くん特栽米生産組合
A4: 区分 | F4: ■ | H4: 有作くん | P4: 確認責任者名 | W4: 山田三郎
F5: □ | H5: 有作くん100 | P5: 栽培責任者名 | W5: 髙橋花子
A7: １ 栽培計画
A8: 品目 (作型) | E8: 4 月 | H8: 5 月 | K8: 6 月 | N8: 7 月 | Q8: 8 月 | T8: 9 月 | W8: 10 月 | Z8: 11 月 | AC8: 12 月 | AF8: 1 月 | AI8: 2 月 | AL8: 3 月
E9: 上 | F9: 中 | G9: 下 | H9: 上 | I9: 中 | J9: 下 | K9: 上 | L9: 中 | M9: 下 | N9: 上 | O9: 中 | P9: 下 | Q9: 上 | R9: 中 | S9: 下 | T9: 上 | U9: 中 | V9: 下 | W9: 上 | X9: 中 | Y9: 下 | Z9: 上 | AA9: 中 | AB9: 下 | AC9: 上 | AD9: 中 | AE9: 下 | AF9: 上 | AG9: 中 | AH9: 下 | AI9: 上 | AJ9: 中 | AK9: 下 | AL9: 上 | AM9: 中 | AN9: 下
A10: 水稲 (コシヒカリ等) | F10: 〇 | G10: - | H10: - | I10: - | J10: - | K10: - | L10: - | M10: △ | N10: - | O10: - | P10: - | Q10: - | R10: - | S10: - | T10: - | U10: - | V10: - | W10: □ | X10: - | Y10: - | Z10: - | AA10: ■ | AB10: - | AC10: - | AD10: - | AE10: - | AF10: - | AG10: - | AH10: - | AI10: - | AJ10: - | AK10: - | AL10: - | AM10: - | AN10: -
F11: 播種 | L11: 定植 | X11: 収穫 | AA11: 出荷
A12: ※○播種、△定植、□収穫、■出荷等の作業を記入。
A13: ２ 栽培基準
A14: （１）土づくり・施肥管理
A15: 使用 時期 | D15: 資材名 | N15: 資材の窒素成分量(%) | T15: 資材の施用量(kg/10a) | X15: 窒素 施用量 (kg/10a) | AF15: 熊本県慣行ﾚﾍﾞﾙ (kg/ 10a) | AI15: 削減 割合 | AL15: 施用量上限の確認
Q16: 有機率(%) | AB16: うち化学肥料窒素施用量(kg/10a)
AI17: ※(1-②/③)×100で算出し50%以上になること
A18: 5月 | D18: 牛ふん堆肥 | N18: 1.1 | Q18: 100 | T18: 500 | X18: 5.5 | AB18: 0 | AL18: ※①が③以下であること
A19: 5月 | D19: 粒状ｽｰﾊﾟｰｴﾝﾘｯﾁ１号 | N19: 0 | T19: 60 | X19: 0 | AB19: 0
A20: 基肥 | D20: 苦土有機入化成826 | N20: 8 | Q20: 60 | T20: 60 | X20: 4.8 | AB20: 1.92
A21: 穂肥 | D21: 苦土有機入化成047 | N21: 10 | Q21: 50 | T21: 15 | X21: 1.5 | AB21: 0.75
X22: 0 | AB22: 0
A23: 合計 | X23: ① | Y23: =SUM(X18:AA22) -> 11.8 | AB23: ② | AC23: =SUM(AB18:AE22) -> 2.67 | AF23: ③ | AG23: 9 | AI23: =(1-AC23/AG23)*100 -> 70.33333333 | AK23: % | AL23: 〇
A24: （２）雑草・病害虫防除管理
A25: 使用 時期 | D25: 農薬名 | N25: 使用 目的 | Q25: 成分名 | AC25: 使用回数 (成分回数) | AG25: 熊本県 慣行ﾚﾍﾞﾙ (回) | AK25: 削減 割合
A27: 播種期 | D27: エコホープＤＪ | N27: 種子消毒 | Q27: トリコデルマ アトロビリデ | AC27: 0 | AK27: ※(1-①/②)×100で算出し50%以上になること
A28: 播種期 | D28: タチガレン液剤 | N28: 殺菌 | Q28: ヒドロキシイソキサゾール | AC28: 1
A29: 播種期 | D29: ビルダースタークル箱粒剤 | N29: 殺虫・殺菌 | Q29: ｼﾞﾉﾃﾌﾗﾝ、ﾌﾟﾛﾍﾞﾅｿﾞｰﾙ | AC29: 2
A30: 6月 | D30: ナギナタジャンボ | N30: 除草 | Q30: ｵｷｻｼﾞｸﾛﾒﾎﾝ、ﾋﾟﾘﾐｽﾙﾌｧﾝ、ﾍﾞﾝｿﾞﾋﾞｼｸﾛﾝ | AC30: 3
A32: 合計 | AC32: ① | AD32: =SUM(AC26:AF31) -> 6 | AG32: ② | AH32: 19 | AK32: =(1-AD32/AH32)*100 -> 68.42105263 | AN32: %
A33: ※資材の写真やｶﾀﾛｸﾞ等、使用資材の商品名と窒素成分量または農薬の有効成分がわかる資料を添付すること。
A35: ３ その他（環境保全等に関する取組事項）
A36: 項目 | O36: 具体的内容（実施予定項目を一つ以上記載すること(資料１参照)）
A37: 廃棄物の適正な処理・利用 | O37: 廃プラスチック等の適正処理、稲わらすき込み
A38: エネルギーの節減 | O38: BDFの使用
A39: 新たな知見・情報の収集 | O39: 講習会への参加
A40: 生産情報の保存 | O40: 生産履歴の記帳
A41: 農村やほ場の環境美化活動 | O41: 集落の清掃活動参加
A42: 都市・農村の交流（ｸﾞﾘｰﾝﾂｰﾘｽﾞﾑ） | O42: 消費者への情報発信
A44: 資料１
A45: 有作くんの登録生産者が取り組む環境保全に関する事項
A47: 項目 | O47: 実施例
A49: 廃棄物の適正な処理・利用 | O49: 農業生産に使用した廃棄物資材（プラスチック等）の関係法令に基づく適正な処理、作物残さ等の有機物の利用など
A53: エネルギーの節減 | O53: 地球温暖化防止のための化石燃料の適正な使用、ハウスの保温対策、ＢＤＦの使用など
A57: 新たな知見・情報の収集 | O57: 県・市町村・ＪＡ等が開催する講習会への参加あるいは情報誌の収集など
A61: 生産情報の保存 | O61: ほ場ごとの肥料・農薬の使用状況等の生産履歴の記帳など
A65: 農村やほ場の環境美化活動 | O65: 農村内の清掃作業への参加、自宅やほ場付近への花等の植栽など
A69: 都市・農村の交流 （グリーンツーリズム） | O69: 地域住民に対する食育活動、地産地消活動、消費者への情報発信、農林漁業体験型民宿、園芸福祉の実施など

Sheet 別添７（１号の３） (hidden)
A1: 別記第１号様式の３ | BE1: 別添７
A2: 令和4年度生産計画書（確認書）
A3: 取組団体名： | G3: 有作くん特栽米生産組合
A4: 区分 | G4: ■ | I4: 有作くん | S4: 確認責任者名 | Z4: 山田三郎 | AQ4: ※○播種、△定植、□収穫、■出荷等の作業を記入。 ※※品目数に応じて行を追加・削除すること。
G5: □ | I5: 有作くん100 | S5: 栽培責任者名 | Z5: 髙橋花子
A6: 栽培計画 | G6: 月 | H6: 4 月 | K6: 5 月 | N6: 6 月 | Q6: 7 月 | T6: 8 月 | W6: 9 月 | Z6: 10 月 | AC6: 11 月 | AF6: 12 月 | AI6: 1 月 | AL6: 2 月 | AO6: 3 月 | AR6: 4 月 | AU6: 5 月 | AX6: 6 月 | BA6: 7 月 | BD6: 8 月 | BG6: 9 月
A7: 品目(作型) | G7: 旬 | H7: 上 | I7: 中 | J7: 下 | K7: 上 | L7: 中 | M7: 下 | N7: 上 | O7: 中 | P7: 下 | Q7: 上 | R7: 中 | S7: 下 | T7: 上 | U7: 中 | V7: 下 | W7: 上 | X7: 中 | Y7: 下 | Z7: 上 | AA7: 中 | AB7: 下 | AC7: 上 | AD7: 中 | AE7: 下 | AF7: 上 | AG7: 中 | AH7: 下 | AI7: 上 | AJ7: 中 | AK7: 下 | AL7: 上 | AM7: 中 | AN7: 下 | AO7: 上 | AP7: 中 | AQ7: 下 | AR7: 上 | AS7: 中 | AT7: 下 | AU7: 上 | AV7: 中 | AW7: 下 | AX7: 上 | AY7: 中 | AZ7: 下 | BA7: 上 | BB7: 中 | BC7: 下 | BD7: 上 | BE7: 中 | BF7: 下 | BG7: 上 | BH7: 中 | BI7: 下
A8: 水稲 (コシヒカリ等) | I8: 〇 | J8: - | K8: - | L8: - | M8: - | N8: - | O8: - | P8: △ | Q8: - | R8: - | S8: - | T8: - | U8: - | V8: - | W8: - | X8: - | Y8: - | Z8: □ | AA8: - | AB8: - | AC8: - | AD8: ■ | AE8: - | AF8: - | AG8: - | AH8: - | AI8: - | AJ8: - | AK8: - | AL8: - | AM8: - | AN8: - | AO8: - | AP8: - | AQ8: - | AR8: - | AS8: - | AT8: - | AU8: - | AV8: - | AW8: - | AX8: - | AY8: - | AZ8: - | BA8: - | BB8: - | BC8: - | BD8: - | BE8: - | BF8: - | BG8: - | BH8: - | BI8: -
I9: 播種 | O9: 定植 | AA9: 収穫 | AD9: 出荷
A11: No. | C11: 生産者名 | J11: 住所 | R11: 生年 月日 | U11: ｸﾞﾘｰﾝ農業生産宣言番号※ | Z11: ほ場の所在地 | AK11: 品目 (作型)※※ | AP11: 計画（生産計画承認申請時） | AZ11: 確認(認証申請時)
AP12: 栽培面積 (a) | AU12: 出荷予定量 (kg) | AZ12: 栽培面積 (a) | BE12: 出荷予定量 (kg)
A14: 1 | C14: 熊本 太郎 | J14: 熊本市南区1-1-100 | R14: S50.10.12 | U14: 1-110001 | Z14: 熊本市南区1-1-100-1234 | AP14: 20 | AU14: 1000
A15: 2 | C15: 〃 | J15: 〃 | R15: 〃 | U15: 〃 | Z15: 熊本市南区2-2-200-5678 | AP15: 10 | AU15: 500
A16: 3 | C16: 熊本 次郎 | J16: 熊本市東区2-2 | R16: S55.1.28 | U16: 1-110002 | Z16: 熊本市東区2-2-999 | AP16: 5 | AU16: 250
A17: 4
A18: 5
A19: 6
A20: 7
A21: 8
A22: 9
A23: 10
A24: 合計 | AP24: =SUM(AP14:AT23) -> 35 | AU24: =SUM(AU14:AY23) -> 1750
A25: ※計画承認申請時に宣言書の交付を受けていない場合は、生産宣言申出書を提出のうえ、「申出中」と記入。 | AM25: ※※品目が複数ある場合に記載し、栽培計画欄と合わせること。
A26: 注）変更届の提出時、ほ場の所在地及び面積を変更する場合は、一重線で見え消しするなど変更箇所がわかるように記載すること。

Sheet 別添８（１号の３） (hidden)
A1: 別記第１号様式の３ | BE1: 別添８
A2: 令和4年度生産計画書（確認書）
A3: 取組団体名： | G3: 有作くん特栽米生産組合
A4: 区分 | G4: ■ | I4: 有作くん | S4: 確認責任者名 | Z4: 山田三郎 | AQ4: ※○播種、△定植、□収穫、■出荷等の作業を記入。 ※※品目数に応じて行を追加・削除すること。
G5: □ | I5: 有作くん100 | S5: 栽培責任者名 | Z5: 髙橋花子
A6: 栽培計画 | G6: 月 | H6: 4 月 | K6: 5 月 | N6: 6 月 | Q6: 7 月 | T6: 8 月 | W6: 9 月 | Z6: 10 月 | AC6: 11 月 | AF6: 12 月 | AI6: 1 月 | AL6: 2 月 | AO6: 3 月 | AR6: 4 月 | AU6: 5 月 | AX6: 6 月 | BA6: 7 月 | BD6: 8 月 | BG6: 9 月
A7: 品目(作型) | G7: 旬 | H7: 上 | I7: 中 | J7: 下 | K7: 上 | L7: 中 | M7: 下 | N7: 上 | O7: 中 | P7: 下 | Q7: 上 | R7: 中 | S7: 下 | T7: 上 | U7: 中 | V7: 下 | W7: 上 | X7: 中 | Y7: 下 | Z7: 上 | AA7: 中 | AB7: 下 | AC7: 上 | AD7: 中 | AE7: 下 | AF7: 上 | AG7: 中 | AH7: 下 | AI7: 上 | AJ7: 中 | AK7: 下 | AL7: 上 | AM7: 中 | AN7: 下 | AO7: 上 | AP7: 中 | AQ7: 下 | AR7: 上 | AS7: 中 | AT7: 下 | AU7: 上 | AV7: 中 | AW7: 下 | AX7: 上 | AY7: 中 | AZ7: 下 | BA7: 上 | BB7: 中 | BC7: 下 | BD7: 上 | BE7: 中 | BF7: 下 | BG7: 上 | BH7: 中 | BI7: 下
A8: 水稲 (コシヒカリ等) | I8: 〇 | J8: - | K8: - | L8: - | M8: - | N8: - | O8: - | P8: △ | Q8: - | R8: - | S8: - | T8: - | U8: - | V8: - | W8: - | X8: - | Y8: - | Z8: □ | AA8: - | AB8: - | AC8: - | AD8: ■ | AE8: - | AF8: - | AG8: - | AH8: - | AI8: - | AJ8: - | AK8: - | AL8: - | AM8: - | AN8: - | AO8: - | AP8: - | AQ8: - | AR8: - | AS8: - | AT8: - | AU8: - | AV8: - | AW8: - | AX8: - | AY8: - | AZ8: - | BA8: - | BB8: - | BC8: - | BD8: - | BE8: - | BF8: - | BG8: - | BH8: - | BI8: -
I9: 播種 | O9: 定植 | AA9: 収穫 | AD9: 出荷
A11: No. | C11: 生産者名 | J11: 住所 | R11: 生年 月日 | U11: ｸﾞﾘｰﾝ農業生産宣言番号※ | Z11: ほ場の所在地 | AK11: 品目 (作型)※※ | AP11: 計画（生産計画承認申請時） | AZ11: 確認(認証申請時)
AP12: 栽培面積 (a) | AU12: 出荷予定量 (kg) | AZ12: 栽培面積 (a) | BE12: 出荷予定量 (kg)
A14: 1 | C14: 熊本 太郎 | J14: 熊本市南区1-1-100 | R14: S50.10.12 | U14: 1-110001 | Z14: 熊本市南区1-1-100-1234 | AP14: 20 | AU14: 1000
A15: 2 | C15: 〃 | J15: 〃 | R15: 〃 | U15: 〃 | Z15: 熊本市南区2-2-200-5678 | AP15: 10 | AU15: 500
A16: 3 | C16: 熊本 次郎 | J16: 熊本市東区2-2 | R16: S55.1.28 | U16: 1-110002 | Z16: 熊本市東区2-2-999 | AP16: 5 | AU16: 250
A17: 4
A18: 5
A19: 6
A20: 7
A21: 8
A22: 9
A23: 10
A24: 合計 | AP24: =SUM(AP14:AT23) -> 35 | AU24: =SUM(AU14:AY23) -> 1750
A25: ※計画承認申請時に宣言書の交付を受けていない場合は、生産宣言申出書を提出のうえ、「申出中」と記入。 | AM25: ※※品目が複数ある場合に記載し、栽培計画欄と合わせること。
A26: 注）変更届の提出時、ほ場の所在地及び面積を変更する場合は、一重線で見え消しするなど変更箇所がわかるように記載すること。

Sheet 別添９（２号の１） (hidden)
A1: 別記第２号様式の１ | N1: 別添９
L3: 第 1 号
L4: 令和 4年 4月 1日
A6: 熊本県知事 蒲島郁夫 様
H9: （確認責任者）
H10: 団体名 | J10: 有作くん特栽米生産組合
H11: 住 所 | J11: 熊本県熊本市中央区水前寺６丁目１８−２００
H12: 氏 名 | J12: 山田三郎 | O12: 印
A15: 熊本型特別栽培農産物申請内容変更届
A18: 熊本型特別栽培農産物取扱要領第５の１の規定に基づき、下記のとおり変更事項を届出ます。
H20: 記
F21: 変更前 | K21: 変更後
A23: 団体名
A25: 住所
A27: 確認責任者名
A29: 生産ほ場の所在地及び面積 | F29: 別記第１号様式の３（生産計画書（確認書））を添付
A31: 変更理由

Sheet 別添１０（２号の２） (hidden)
A1: 別記第２号様式の２ | N1: 別添１０
L3: 第 1 号
L4: 令和 年 4月 1日
A6: 熊本県知事 蒲島郁夫 様
H9: （確認責任者）
H10: 団体名 | J10: 有作くん特栽米生産組合
H11: 住 所 | J11: 熊本県熊本市中央区水前寺６丁目１８−２００
H12: 氏 名 | J12: 山田三郎 | O12: 印
A15: 熊本型特別栽培農産物計画中止届
A18: 熊本型特別栽培農産物取扱要領第５の２の規定に基づき、下記のとおり計画の中止を届出ます。
H20: 記
A22: 品目及び生産ほ場 | F22: 別記第１号様式の３（生産計画書（確認書））を添付
A25: 計画中止の理由

Sheet 別添１１（３号の１） (hidden)
A1: 別記第３号様式の１ | L1: 別添１１
J3: 第 1 号
J4: 令和 年 4月 1日
A6: 熊本県知事 蒲島郁夫 様
G10: （確認責任者）
G11: 団体名 | I11: 有作くん特栽米生産組合
G12: 住 所 | I12: 熊本県熊本市中央区水前寺６丁目１８−２００
G13: 氏 名 | I13: 山田三郎 | M13: 印
A16: 令和4年度熊本型特別栽培農産物認証申請書
A19: 熊本型特別栽培農産物取扱要領第６の１の規定に基づき、関係書類を添えて申請します。
A22: 添付書類
A23: １ 生産確認書（別記第１号様式の３）
A24: ２ 確認記録簿の写し
A25: ３ 生産履歴記帳簿の写し

Sheet 別添１２（４号） (hidden)
A1: 別記第４号様式 | L1: 別添１２
J3: 第 1 号
J4: 令和 4年 4月 1日
A6: 熊本県知事 蒲島郁夫 様
G10: （確認責任者）
G11: 団体名 | I11: 有作くん特栽米生産組合
G12: 住 所 | I12: 熊本県熊本市中央区水前寺６丁目１８−２００
G13: 氏 名 | I13: 山田三郎 | M13: 印
A16: 令和4年度熊本型特別栽培農産物取扱実績報告書
A19: 熊本型特別栽培農産物取扱要領第８の１の規定に基づき、下記のとおり報告します。
G21: 記
A22: １ 生産実績
A23: 品目（作型） | D23: 生産者数 （人） | G23: 作付面積 （ａ）
A25: 水稲 （コシヒカリ等） | D25: 5 | G25: 15
A27: 合計 | D27: 5 | G27: 15
A30: ２ 出荷実績
A31: 品目（作型） | D31: 出荷量 （ｋｇ） | G31: 出荷時期 | J31: 主な出荷先
A33: 水稲 （コシヒカリ等） | D33: 250 | G33: 11月 | J33: 福岡県JA
A35: 合計 | D35: 250 | G35: - | J35: 福岡県JA
A38: ３ 添付書類
A39: 確認記録簿の写し

Sheet 別添１３（参考１ 誓約書） (hidden)
A1: 参考様式１ | L1: 別添１３
J3: 第 1 号
J4: 令和 4年 4月 1日
A6: （団体名） 有作くん特栽米生産組合
A7: 確認責任者
A8: 山田三郎 様
I10: 住所 | J10: 熊本県熊本市中央区水前寺６丁目１８−２００
I11: 氏名 | J11: 山田三郎 | M11: 印
A15: 誓 約 書
A18: 熊本型特別栽培農産物を生産するにあたり、次のことを誓約します。
A19: １ 熊本型特別栽培農産物取扱要領を遵守すること ２ 生産者としての責務を果たすこと ３ 当該要領に違反し、栽培・確認責任者に損害を与えた場合は、その責任をとる こと ４ 暴力団員による不当な行為の防止等に関する法律（平成三年法律第七十七号） 第二条第六号に規定する暴力団員又は暴力団、暴力団員が役員となっている団体 若しくは暴力団員又は暴力団と密接な関係を有する者ではないこと
A26: ※その他、団体の規程等により必要な事項があれば追記する。
A27: ※団体の規程等による誓約書がある場合は、それにより代えることもできる。

Sheet 別添１４（参考２ 確認記録） (hidden)
A1: 参考様式２ | I1: 別添１４
A2: 令和4年度熊本型特別栽培農産物確認記録簿
A4: 取組団体名： | C4: 有作くん特栽米生産組合
A5: 確認責任者名： | C5: 山田三郎
A6: 栽培責任者名： | C6: 髙橋花子
A7: 品目名(作型)： | C7: 水稲（コシヒカリ等）
A9: １ 生産指導内容
A10: 月日 | B10: 指導･確認内容
B11: 土づくり・施肥 | E11: 雑草・病害虫防除 | H11: 環境保全に関する事項
A12: 2022-05-06 | B12: 牛ふん堆肥
A13: 2022-05-15 | E13: エコホープＤＪ | H13: 生産履歴の記帳
A28: ２ 主な出荷先
A29: 福岡農協JA

Sheet 別添１５（参考３ 生産履歴） (hidden)
A1: 参考様式３ | AD1: 別添１５
A2: 令和4年度生産履歴記帳簿
A5: 団体名 | G5: 有作くん特栽米生産組合
A6: 生産者名 | G6: 山田三郎 | R6: 住 所 | V6: 熊本県熊本市中央区水前寺６丁目１８−２００
A7: 品目名(作型) | G7: 水稲 | R7: 品種名 | V7: コシヒカリ等
A10: 対象ほ場 | C10: No. | E10: 地番 | R10: 面積 | V10: 作付日 | Z10: 作付方法 | AD10: 収穫開始日
C11: 1 | E11: 熊本市南区1-1-100-1234 | R11: 20 | U11: a | V11: 2022-05-03 | Z11: 無農薬 | AD11: 2022-11-25
C12: 2 | U12: a
C13: 3 | U13: a
C14: 4 | U14: a
C15: 5 | U15: a
A16: ※「作付方法」の欄には、は種・接木・定植等を記入。
C18: 使用資材名称 | S18: 施用量 | X18: 施用日 | AB18: 備考(ほ場No.等)
A20: 土づくり・施肥 | C20: 堆肥等 | F20: 牛ふん堆肥 | S20: 0.5 | V20: t/10a | X20: 2022-05-05 | AB20: 1
F21: 粒状ｽｰﾊﾟｰｴﾝﾘｯﾁ１号 | S21: 0.5 | V21: t/10a | X21: 2022-05-05
V22: t/10a
C23: 土壌改良資材 | F23: 苦土有機入化成826 | S23: 1 | V23: kg/10a | X23: 2022-06-15 | AB23: 1
V24: kg/10a
V25: kg/10a
C26: 基肥 | F26: 苦土有機入化成826 | S26: 0.8 | V26: kg/10a | X26: 2022-06-24 | AB26: 1
V27: kg/10a
V28: kg/10a
V29: kg/10a
C30: 追肥 | V30: kg/10a
V31: kg/10a
V32: kg/10a
V33: kg/10a
C34: 使用資材名称 | S34: 散布日
S35: １回目 | V35: ２回目 | Y35: ３回目 | AB35: ４回目 | AE35: ５回目
A36: 雑草・病害虫防除等 | C36: 除草剤 | F36: ナギナタジャンボ | S36: 2022-06-22
C39: 殺菌剤 | F39: タチガレン液剤 | S39: 2022-05-03 | V39: 2022-05-04
C44: 殺虫剤 | F44: ビルダースタークル箱粒剤 | S44: 2022-06-23
A49: 参考様式３
A50: 令和4年度生産履歴記帳簿
D53: 出荷予定（認証申請時） | S53: 出荷実績
D54: 収穫量 (kg) | H54: 出荷 予定日 | L54: 有作くんとしての出荷予定量(kg) | S54: 収穫量 (kg) | W54: 出荷日 | AA54: 有作くんとしての出荷量(kg)
D56: 1000 | H56: 2022-11-03 | L56: 1050 | S56: 1000 | W56: 2022-11-03 | AA56: 1150
D57: 500 | H57: 2022-11-12 | L57: 510 | S57: 500 | W57: 2022-11-12 | AA57: 490
D58: 250 | H58: 2022-11-14 | L58: 200 | S58: 250 | W58: 2022-11-14 | AA58: 200
A64: 合計 | D64: 1750 | H64: - | L64: 1760 | S64: 1750 | W64: - | AA64: 1840
A66: 出荷先
A70: その他 | D70: 期日 | H70: 作業内容
D71: 令和4年12月まで | H71: 除草作業
G77: 具体的内容
A78: 廃棄物の適正な処理・利用 | G78: 廃プラスチック等の適正処理、稲わらすき込み
A80: エネルギーの節減 | G80: BDFの使用
A82: 新たな知見・情報の収集 | G82: 講習会への参加
A84: 生産情報の保存 | G84: 生産履歴の記帳
A86: 農村やほ場の環境美化活動 | G86: 集落の清掃活動参加
A88: 都市・農村の交流（ｸﾞﾘｰﾝﾂｰﾘｽﾞﾑ） | G88: 消費者への情報発信
A90: ※実施した項目について、「具体的内容」を記載すること。
Q92: 確認欄 | T92: 確認日 | X92: 確認責任者名
T93: 2022-12-01 | X93: 山田三郎 | AF93: 印
